{"text_format":"1","workbook":"xlsx","n_sheets":9,"sheets":["Main Page","Arches","Capitol Reef","Zions","Canyonlands","Bryce Canyon","My Trip Summary","Help","Rental Cars"],"not_rendered":{"charts":0,"images":160,"macros":1,"external_links":0,"defined_names":0,"comments":0,"pivot_tables":0},"unopened":[],"bounds":{"document_bytes":16777216,"sheet_cells":100000,"rows_first":2000,"rows_last":500,"rows_between":2000,"halvings":0,"cell_chars":16384,"cell_head_chars":4096},"cells_cut":0,"cells_raw":0,"read":"whole","date_system":"1900"}

{"sheet":"Main Page","index":0,"n_rows":10,"n_cols":24,"rows_kept":10,"cut":false,"hidden":false,"merged":[]}
[]
[]
[]
[]
[null,""]
[]
[]
[]
[]
[null,null,null,null,null,null,null,null,null,null,null,null,null,null,null,null,null,null,null,"Rental Car",null,"Number of Days:",null,7]

{"sheet":"Arches","index":1,"n_rows":46,"n_cols":22,"rows_kept":46,"cut":false,"hidden":false,"merged":[[43,1,43,2],[44,1,44,2],[29,1,29,2],[30,1,30,2],[31,1,31,2],[32,1,32,2],[42,1,42,2],[20,10,20,11],[37,1,37,2],[36,1,36,2],[35,1,35,2],[30,5,30,6],[21,1,21,2],[22,1,22,2],[23,1,23,2],[24,1,24,2],[25,1,25,2]]}
[]
[]
[null,null,null,null,null,null,null,null,null,null,null,null,null,null,null,null,null,"Cost of Arches National Park:",null,null,null,{"$f":"SUM(E27,E34,L32,E39,E46,L46,M40,T8)","v":0}]
[null,null,null,null,null,null,null,null,null,null,null,null,null,null,null,null,null,"Entrance Fees:"]
[null,null,null,null,null,null,null,null,null,null,null,null,null,null,null,null,null,"Entrance Type","Price","Quantity"]
[null,null,null,null,null,null,null,null,null,null,null,null,null,null,null,null,null,"Vehicle",10]
[null,null,null,null,null,null,null,null,null,null,null,null,null,null,null,null,null,"Pedestrian",5]
[null,null,null,null,null,null,null,null,null,null,null,null,null,null,null,null,null,null,"Total:",{"$f":"SUM(S6:S7*T6:T7)","v":0}]
[]
[null,null,null,null,null,null,null,null,null,null,null,null,null,null,null,null,null,"Travel Distance:",186.7,"Miles"]
[]
[]
[]
[]
[]
[]
[]
[]
[null,"Lodgings:",null,null,null,null,null,null,null,"Activities:",null,null,null,null,null,null,null,"Restaurants:"]
[]
[null,"Sunflower Inn Bed & Breakfast",null,null,null,null,null,null,null,"Hiking","Price: Free!!",null,null,null,null,null,null,"Jeffrey's Steak House"]
[null,"Room Provides:",null,"Price","Quantity",null,null,null,null,"Trail","Length (mile)","Difficulty",null,null,null,null,null,"Price: $15-20 Entrée"]
[null,"Classic Suite",null,140,null,null,null,null,null,"Balance rock",0.3,"Easy"]
[null,"Delux Room",null,160,null,null,null,null,null,"Delicate Arch",3,"Moderate"]
[null,"Delux Suite",null,180,null,null,null,null,null,"Devils Garden",5,"Easy",null,null,null,null,null,"Jail House Café"]
[null,"Luxury Room",null,210,null,null,null,null,null,"Double Arch",0.8,"Difficulty",null,null,null,null,null,"Price: $10-15 Entrée"]
[null,null,null,"Total:",{"$f":"SUM(D23:D26*E23:E26)","v":0},null,null,null,null,"Fiery Furnace",2,"Moderate"]
[]
[null,"Red Cliffs Lodge",null,null,null,null,null,null,null,"Guided Walking Tours",null,null,null,null,null,null,null,"Sabaku Sushi"]
[null,"Room Provides:",null,"Price","Quantity",null,null,null,null,"Trail","Price (per person)","Quantity",null,null,null,null,null,"Price: $10-20 Entrée"]
[null,"Creekside Queen",null,100,null,null,null,null,null,"Fiery Furnace",10]
[null,"River King Suite",null,120,null,null,null,null,null,null,"Total:",{"$f":"SUM(K31*L31)","v":0}]
[null,"River King Cabin",null,170,null,null,null,null,null,null,null,null,null,null,null,null,null,"Miguel's Baja Grill"]
[null,null,null,"Total:",{"$f":"SUM(D31:D33*E31:E33)","v":0},null,null,null,null,"Canyoneering",null,null,null,null,null,null,null,"Price: $12-20 Entrée"]
[null,"Camping",null,null,null,null,null,null,null,"Trip Name","Difficulty","Price (per person)","Quantity"]
[null,"Type",null,"Price","Quantity",null,null,null,null,"Medieval Chamber","Easy",95]
[null,"Single",null,20,null,null,null,null,null,"Entrajo Canyon","Moderate",95]
[null,"Group",null,3,null,null,null,null,null,"Tierdrop Canyon","Moderate",95]
[null,null,null,"Total:",{"$f":"SUM(D37:D38*E37:E38)","v":0},null,null,null,null,"Krill Canyon","Difficulty",100]
[null,"*Group camping is $3/person",null,null,null,null,null,null,null,null,null,"Total:",{"$f":"SUM(L36:L39*M36:M39)","v":0}]
[]
[null,"Inca Inn"]
[null,"Cabin Provides",null,"Price","Quantity",null,null,null,null,"Scenic Balloon Rides"]
[null,"One Queen bed",null,60,null,null,null,null,null,"Location","Price (per person)","Quantity"]
[null,"Two Queen beds",null,100,null,null,null,null,null,"Moab",259]
[null,null,null,"Total:",{"$f":"SUM(D44:D45*E44:E45)","v":0},null,null,null,null,null,"Total:",{"$f":"SUM(K45*L45)","v":0}]

{"sheet":"Capitol Reef","index":2,"n_rows":49,"n_cols":19,"rows_kept":49,"cut":false,"hidden":false,"merged":[[38,1,38,2],[39,1,39,2],[40,1,40,2],[34,1,34,2],[34,3,34,4],[17,8,17,9],[18,8,18,9],[19,8,19,9],[28,8,28,9],[37,1,37,2],[31,8,31,9],[30,1,30,2],[31,1,31,2],[32,1,32,2],[33,1,33,2],[29,3,29,4],[31,3,31,4],[32,3,32,4],[33,3,33,4],[24,1,24,2],[25,1,25,2],[26,1,26,2],[27,1,27,2],[16,1,16,2],[17,1,17,2],[18,1,18,2],[19,1,19,2],[20,1,20,2],[29,8,29,9],[30,3,30,4],[35,8,35,9],[34,8,34,9],[33,8,33,9],[32,8,32,9],[30,8,30,9]]}
[]
[]
[null,null,null,null,null,null,null,null,null,null,null,null,null,null,null,"Cost of Capitol Reef National Park:",null,null,{"$f":"E22+E29+F36+E42+C47+L49+K42+K27+R8","v":0}]
[null,null,null,null,null,null,null,null,null,null,null,null,null,null,null,"Entrance Fees:"]
[null,null,null,null,null,null,null,null,null,null,null,null,null,null,null,"Entrance Type","Price","Quantity"]
[null,null,null,null,null,null,null,null,null,null,null,null,null,null,null,"Walk In","$3/person/week"]
[null,null,null,null,null,null,null,null,null,null,null,null,null,null,null,"Private Vehicle","$5/vehicle/day"]
[null,null,null,null,null,null,null,null,null,null,null,null,null,null,null,null,"Total:",{"$f":"R6*3+R7*5","v":0}]
[]
[null,null,null,null,null,null,null,null,null,null,null,null,null,null,null,"Travel Distance:",191.6,"Miles"]
[]
[]
[]
[null,"Lodging:",null,null,null,null,null,null,"Activities:",null,null,null,null,null,"Restaurants:"]
[]
[null,"Aquarius Motel"]
[null,"Room Provides:",null,"Price","Quantity"]
[null,"One Queen",null,46.9,null,null,null,null,"Mountain Trails",null,null,null,null,null,"Prices Range from $10-$20"]
[null,"One King",null,50.9,null,null,null,null,"Red Rock Paradise"]
[null,"Two Queen",null,56.9,null,null,null,null,"Conyoneering Mecca"]
[null,"Two King",null,60.9]
[null,null,null,"Total:",{"$f":"SUM(D18*E18,D19*E19,D20*E20,D21*E21)","v":0},null,null,null,null,null,null,null,null,null,"Prices Range from $10-$20"]
[null,null,null,null,null,null,null,null,"Horseback Riding"]
[null,"Sunglow Motel & Restaurant",null,null,null,null,null,null,"Time Length","Cost (per person)","Quantity"]
[null,"Room Provides:",null,"Price","Quantity",null,null,null,"1 Hour ",40,null,null,null,null,"Prices Range from $5-$20"]
[null,"Double King",null,65,null,null,null,null,"1/2 Day",80]
[null,"Single King",null,55,null,null,null,null,null,"Total:",{"$f":"SUM(K25*J25,K26*J26)","v":0}]
[null,"Two Double",null,55,null,null,null,null,null,null,null,null,null,null,"Prices Range From $5-$15"]
[null,null,null,"Total:",{"$f":"SUM(D26*E26,D27*E27,D28*E28)","v":0},null,null,null,"Wildlife"]
[null,"Camping",null,null,null,null,null,null,"Black Billed Magpie"]
[null,"Camp Type",null,"Price",null,"Quantity",null,null,"Black Bears",null,null,null,null,null,"Prices Range from $5-$16"]
[null,"Cathedral valley",null,"Free",null,null,null,null,"Kangaroo Rat"]
[null,"Group",null,"$3/person",null,null,null,null,"Pinion Jay"]
[null,"Backcountry",null,"$5/person",null,null,null,null,"Porcupines",null,null,null,null,null,"Prices Range from  $10-$25"]
[null,"Cedar Mesa",null,"Free",null,null,null,null,"Pronghorn Antelope"]
[null,null,null,null,"Total:",{"$f":"F33*3+F34*5","v":0},null,null,"Utah Prairie Dogs"]
[null,"The Mill Cabin"]
[null,"Cabin Provides",null,"Price","Quantity",null,null,null,"Jeep Tours"]
[null,"Queen bed",null,50,null,null,null,null,"Tour","Price","Quantity"]
[null,"Two full Beds",null,50,null,null,null,null,"Capitol Reef ",120]
[null,"King Bed",null,60,null,null,null,null,"Grand Staircase",150]
[null,null,null,"Total:",{"$f":"SUM(E39*D39,E40*D40,E41*D41)","v":0},null,null,null,null,"Total:",{"$f":"K40*J40+K41*J41","v":0}]
[null,"Muley Twist Inn",null,null,null,null,null,null,"Fishing & Hunting with Guide Tour"]
[null,"Category","Quantity",null,null,null,null,null,"Amount in Group","Time Length","Price","Quantity"]
[null,"$125 Double Occupancy Room",null,null,null,null,null,null,1,"1/2 day",175]
[null,"$15 for every additional Adult",null,null,null,null,null,null,2,"1/2 day",250]
[null,"Total:",{"$f":"C45*125+C46*15","v":0},null,null,null,null,null,3,"1/2 day",300]
[null,null,null,null,null,null,null,null,4,"1/2 day",350]
[null,null,null,null,null,null,null,null,null,null,"Total:",{"$f":"L45*K45+L46*K46+L47*K47+L48*K48","v":0}]

{"sheet":"Zions","index":3,"n_rows":51,"n_cols":23,"rows_kept":51,"cut":false,"hidden":false,"merged":[[38,10,38,11],[27,10,27,11],[21,12,21,13],[22,12,22,13],[23,12,23,13],[24,12,24,13],[25,12,25,13],[26,12,26,13],[37,3,37,4],[27,12,27,13],[21,10,21,11],[22,10,22,11],[23,10,23,11],[24,10,24,11],[25,10,25,11],[26,10,26,11],[36,10,36,11],[37,10,37,11],[31,3,31,4],[35,1,35,2],[34,1,34,2],[34,3,34,4],[35,3,35,4],[36,3,36,4],[3,17,3,21],[5,19,5,20],[6,19,6,20],[7,19,7,20],[5,17,5,18],[6,17,6,18],[7,17,7,18],[9,19,9,20],[10,19,10,20],[49,1,49,2],[49,3,49,4],[4,17,4,18],[44,1,44,2],[45,1,45,2],[25,1,25,2],[26,1,26,2],[27,1,27,2],[28,1,28,2],[29,1,29,2],[39,1,39,2],[40,1,40,2],[38,3,38,4],[39,3,39,4],[48,3,48,4],[48,1,48,2],[43,1,43,2],[9,17,9,18],[30,3,30,4],[30,1,30,2],[31,1,31,2],[25,3,25,4],[26,3,26,4],[27,3,27,4],[28,3,28,4],[29,3,29,4],[40,3,40,4],[38,1,38,2],[37,1,37,2],[36,1,36,2]]}
[]
[]
[]
[null,null,null,null,null,null,null,null,null,null,null,null,null,null,null,null,null,"Cost of Visiting Arches National Park:",null,null,null,null,{"$f":"V9+O40+F24+F33+F42+D47+F51","v":0}]
[null,null,null,null,null,null,null,null,null,null,null,null,null,null,null,null,null,"Entrance Fees:"]
[null,null,null,null,null,null,null,null,null,null,null,null,null,null,null,null,null,"Entrance Type",null,"Price (per week)",null,"Quantity"]
[null,null,null,null,null,null,null,null,null,null,null,null,null,null,null,null,null,"Private Vehicle",null,25]
[null,null,null,null,null,null,null,null,null,null,null,null,null,null,null,null,null,"Pedestrian/Bike",null,13]
[null,null,null,null,null,null,null,null,null,null,null,null,null,null,null,null,null,null,null,"Total: ",null,{"$f":"V7*T7+V8*T8","v":0}]
[]
[null,null,null,null,null,null,null,null,null,null,null,null,null,null,null,null,null,null,"Travel Distance:",265.5,null,"Miles"]
[]
[]
[]
[]
[]
[]
[]
[]
[null,"Lodging:",null,null,null,null,null,null,null,null,"Activities:",null,null,null,null,null,null,"Restaurants:"]
[null,null,null,null,null,"Quantity"]
[null,"Tent Rental - $20 per tent per night",null,null,null,null,null,null,null,null,"Trail Name",null,null,null,null,null,null,"Prices range from $5-$15"]
[null,"$10.50 per person per night",null,null,null,null,null,null,null,null,"The East Rim"]
[null,null,null,null,"Total:",{"$f":"F22*20+F23*10.5","v":0},null,null,null,null,"Hop Valley"]
[null,"Zion National Park Cabin Suites",null,null,null,null,null,null,null,null,"Kolob arch",null,null,null,null,null,null,"Prices range from $10-$25"]
[null,"Number of people",null,"Price (per cabin)",null,"Quantity",null,null,null,null,"The Narrows"]
[null,1,null,160,null,null,null,null,null,null,"The West Rim"]
[null,2,null,161,null,null,null,null,null,null,"Northgate Peaks",null,null,null,null,null,null,"Prices range from $10-$20"]
[null,3,null,162]
[null,4,null,163]
[null,5,null,164,null,null,null,null,null,null,null,null,null,null,null,null,null,"Prices range from $10-$20"]
[null,6,null,165,null,null,null,null,null,null,"*Permits are not required for day climbs but for overnight bivouacs"]
[null,null,null,null,"Total:",{"$f":"SUM(D27*F27,D28*F28,D29*F29,D30*F30,D31*F31,D32*F32)","v":0}]
[null,"Zion Park Cowboy Cabins",null,null,null,null,null,null,null,null,"*Allowed in Virgin River as long as you have a current Utah fishing Liscense"]
[null,"Number of People",null,"Price (per cabin)",null,"Quantity"]
[null,1,null,65,null,null,null,null,null,null,"Horseback Riding"]
[null,2,null,72.5,null,null,null,null,null,null,"Trip",null,"Time Length","Cost (per person)","Quantity"]
[null,3,null,78,null,null,null,null,null,null,"Virgin River Ride",null,"1 Hour ",40]
[null,4,null,83.5,null,null,null,null,null,null,"Sand Bench Trail",null,"1/2 Day",80]
[null,5,null,89,null,null,null,null,null,null,null,null,null,"Total:",{"$f":"O38*N38+O39*N39","v":0}]
[null,6,null,94.5]
[null,null,null,null,"Total:",{"$f":"SUM(F36*D36,D37*F37,D38*F38,D39*F39,D40*F40,D41*F41)","v":0}]
[null,"RV Camping - Full Hookups"]
[null,"Category",null,"Quantity"]
[null,"$49 per night for 4 people"]
[null,"$5.50 for each additional person"]
[null,null,"Total:",{"$f":"(D45*49)+(D46*5.5)","v":0}]
[null,"Best Western East Zion Thunderbird"]
[null,"Room Includes",null,"Price ( per room)",null,"Quantity"]
[null,"2 Queen Beds",null,65.69]
[null,null,null,null,"Total:",{"$f":"F50*D50","v":0}]

{"sheet":"Canyonlands","index":4,"n_rows":51,"n_cols":22,"rows_kept":51,"cut":false,"hidden":false,"merged":[[41,1,41,2],[42,1,42,2],[47,1,47,2],[48,1,48,2],[49,1,49,2],[40,1,40,2],[25,10,25,11],[26,1,26,2],[27,1,27,2],[28,1,28,2],[29,1,29,2],[30,1,30,2],[34,1,34,2],[35,1,35,2],[35,5,35,6],[36,1,36,2],[37,1,37,2]]}
[]
[]
[null,null,null,null,null,null,null,null,null,null,null,null,null,null,null,null,null,"Cost of Canyonlands National Park:",null,null,null,{"$f":"SUM(E32,E39,L37,E44,E51,L51,M45,T8)","v":0}]
[null,null,null,null,null,null,null,null,null,null,null,null,null,null,null,null,null,"Entrance Fees:"]
[null,null,null,null,null,null,null,null,null,null,null,null,null,null,null,null,null,"Entrance Type","Price","Quantity"]
[null,null,null,null,null,null,null,null,null,null,null,null,null,null,null,null,null,"Vehicle",10]
[null,null,null,null,null,null,null,null,null,null,null,null,null,null,null,null,null,"Pedestrian",5]
[null,null,null,null,null,null,null,null,null,null,null,null,null,null,null,null,null,null,"Total:",{"$f":"SUM(S6:S7*T6:T7)","v":0}]
[]
[null,null,null,null,null,null,null,null,null,null,null,null,null,null,null,null,null,"Travel Distance:",194.3,"Miles"]
[]
[]
[]
[]
[]
[]
[]
[]
[]
[]
[]
[]
[]
[null,"Lodgings:",null,null,null,null,null,null,null,"Activities:",null,null,null,null,null,null,null,"Restaurants:"]
[]
[null,"Sunflower Inn Bed & Breakfast",null,null,null,null,null,null,null,"The Island in the Sky",null,null,null,null,null,null,null,"Jeffrey's Steak House"]
[null,"Room Provides:",null,"Price","Quantity",null,null,null,null,null,null,null,null,null,null,null,null,"Price: $15-20 Entrée"]
[null,"Classic Suite",null,140,null,null,null,null,null,"Hiking (Short)","Price: Free!!",null,"Hiking (Long)/Backpacking","Price: Free!!"]
[null,"Delux Room",null,160,null,null,null,null,null,"Location","Number of Trails",null,"Location","Number of Trails"]
[null,"Delux Suite",null,180,null,null,null,null,null,"Island in the Sky",5,null,"Island in the Sky",4,null,null,null,"Jail House Café"]
[null,"Luxury Room",null,210,null,null,null,null,null,"Needles",4,null,"Needles",8,null,null,null,"Price: $10-15 Entrée"]
[null,null,null,"Total:",{"$f":"SUM(D28:D31*E28:E31)","v":0},null,null,null,null,"Maze","numerous",null,"Maze","numerous"]
[null,null,null,null,null,null,null,null,null,"Horseshoe Canyon",1]
[null,"Red Cliffs Lodge",null,null,null,null,null,null,null,null,null,null,null,null,null,null,null,"Sabaku Sushi"]
[null,"Room Provides:",null,"Price","Quantity",null,null,null,null,"White Rim Road (100 miles)","Price: Free!!",null,"4WD/Biking","Price: Free!!",null,null,null,"Price: $10-20 Entrée"]
[null,"Creekside Queen",null,100,null,null,null,null,null,"Vehicle","Days to Complete",null,"Location","Number of Roads"]
[null,"River King Suite",null,120,null,null,null,null,null,"4WD Vehicle","2 or 3",null,"Needles",4]
[null,"River King Cabin",null,170,null,null,null,null,null,"Mountain Bike"," 3 or 4",null,"Maze","numerous",null,null,null,"Miguel's Baja Grill"]
[null,null,null,"Total:",{"$f":"SUM(D36:D38*E36:E38)","v":0},null,null,null,null,null,null,null,null,null,null,null,null,"Price: $12-20 Entrée"]
[null,"Camping"]
[null,"Type",null,"Price","Quantity",null,null,null,null,"Horseback Riding into Horseshoe Canyon (Price: Free)"]
[null,"Willow Flat*",null,10]
[null,"Squaw Flat**",null,15,null,null,null,null,null,"Guided Walk into Horseshoe Canyon (Price: Free)"]
[null,null,null,"Total:",{"$f":"SUM(D42:D43*E42:E43)","v":0}]
[null,"*Located at Island in the Sky in Canyonlands",null,null,null,null,null,null,null,"River Shuttle"]
[null,"**Located at Needles in Canyonlands",null,null,null,null,null,null,null,"Company","Price"]
[null,"Inca Inn",null,null,null,null,null,null,null,"Tex's Riverways","varies"]
[null,"Cabin Provides",null,"Price","Quantity",null,null,null,null,"Tag-A-Long Expeditions","varies"]
[null,"One Queen bed",null,60]
[null,"Two Queen beds",null,100]
[null,null,null,"Total:",{"$f":"SUM(D49:D50*E49:E50)","v":0}]

{"sheet":"Bryce Canyon","index":5,"n_rows":60,"n_cols":22,"rows_kept":60,"cut":false,"hidden":false,"merged":[[58,1,58,2],[50,1,50,2],[51,1,51,2],[45,1,45,2],[46,1,46,2],[52,1,52,2],[57,1,57,2],[48,1,48,2],[54,1,54,2],[55,1,55,2],[56,1,56,2],[34,1,34,2],[35,1,35,2],[36,1,36,2],[37,1,37,2],[38,1,38,2],[40,1,40,2],[41,5,41,6],[42,1,42,2],[43,1,43,2],[47,1,47,2],[44,1,44,2],[30,1,30,2],[25,10,25,11],[26,1,26,2],[27,1,27,2],[28,1,28,2],[29,1,29,2]]}
[]
[]
[null,null,null,null,null,null,null,null,null,null,null,null,null,null,null,null,null,"Cost of Arches National Park:",null,null,null,{"$f":"SUM(E32,E46,L43,E51,E58,L58,M52,T9)","v":80}]
[null,null,null,null,null,null,null,null,null,null,null,null,null,null,null,null,null,"Entrance Fees:"]
[null,null,null,null,null,null,null,null,null,null,null,null,null,null,null,null,null,"Entrance Type","Price","Quantity"]
[null,null,null,null,null,null,null,null,null,null,null,null,null,null,null,null,null,"Vehicle",25]
[null,null,null,null,null,null,null,null,null,null,null,null,null,null,null,null,null,"Pedestrian",12]
[null,null,null,null,null,null,null,null,null,null,null,null,null,null,null,null,null,"Motorcycle",20]
[null,null,null,null,null,null,null,null,null,null,null,null,null,null,null,null,null,null,"Total:",{"$f":"SUM(S6:S8*T6:T8)","v":0}]
[]
[null,null,null,null,null,null,null,null,null,null,null,null,null,null,null,null,null,"Travel Distance:",229.6,"Miles"]
[]
[]
[]
[]
[]
[]
[]
[]
[]
[]
[]
[]
[null,"Lodgings:",null,null,null,null,null,null,null,"Activities:",null,null,null,null,null,null,null,"Restaurants:"]
[]
[null,"Best Western Plus Ruby's Inn",null,null,null,null,null,null,null,"Hiking","Price: Free!!",null,null,null,null,null,null,"Cowboys Buffet and Steak Room"]
[null,"Room Provides:",null,"Price","Quantity",null,null,null,null,"Trail","Length (mile)","Difficulty",null,null,null,null,null,"Price: $9-26"]
[null,"1 King Bed",null,69.95,null,null,null,null,null,"Mossy Cave",0.8,"Easy"]
[null,"2 King Bed",null,79.95,null,null,null,null,null,"Rim Trail","0-11","Easy"]
[null,"2 Queen Beds",null,69.95,null,null,null,null,null,"Bristlecone Loop",1,"Easy",null,null,null,null,null,"Cowboy Ranch House"]
[null,"2 Room Family Suite",null,129.94999999999999,null,null,null,null,null,"Queens Garden",1.8,"Easy",null,null,null,null,null,"Price: $7-24"]
[null,null,null,"Total:",{"$f":"SUM(D28:D31*E28:E31)","v":0},null,null,null,null,"Navajo Trail",1.3,"Moderate"]
[null,null,null,null,null,null,null,null,null,"Tower Bridge",3,"Moderate"]
[null,"Bryce Canyon Pines Motel",null,null,null,null,null,null,null,"Hat Shop",4,"Moderate",null,null,null,null,null,"Ebenezer's Barn and Grill"]
[null,"Room Provides:",null,"Price","Quantity",null,null,null,null,"Swamp Canyon",4.3,"Moderate",null,null,null,null,null,"Price: 429-35"]
[null,"Cottage",null,135,null,null,null,null,null,"Fairyland Loop",8,"Strenuous"]
[null,"Family Suite",null,325,null,null,null,null,null,"Peek-A-Boo Loop",5.5,"Strenuous"]
[null,"Deluxe Room",null,130,null,null,null,null,null,"Riggs Spring Loop",8.5,"Strenuous",null,null,null,null,null,"Bryce Canyon Pines"]
[null,"Standard Room",null,110,null,null,null,null,null,null,null,null,null,null,null,null,null,"Price: $11-30"]
[null,null,null,"Total:",{"$f":"SUM(D36:D39*E36:E39)","v":0},null,null,null,null,"Horse and Mule Rides"]
[null,null,null,null,null,null,null,null,null,"Company","Length of Ride","Price (per person)","Quantity"]
[null,"Bryce Canyon Grand Hotel",null,null,null,null,null,null,null,"Canyon Trail Rides","2 hours",60,null,null,null,null,null,"Foster's Steak House"]
[null,"Type",null,"Price","Quantity",null,null,null,null,null,"1/2 a day",80,null,null,null,null,null,"Price: $10-24"]
[null,"King",null,89.95,null,null,null,null,null,null,null,"Total:",{"$f":"SUM(L42:L43*M42:M43)","v":0}]
[null,"Double Queen",null,89.95]
[null,"Deluxe Suite",null,199,null,null,null,null,null,"Ranger Programs",null,"Price: Free!!"]
[null,"2 Queen Suite",null,139.94999999999999,null,null,null,null,null,"Program","Duration (hrs)","Location"]
[null,null,null,"Price:",{"$f":"SUM(D44:D47*E44:E47)","v":0},null,null,null,null,"Geology Talks",0.5,"Inspiration/Sunset Point"]
[null,null,null,null,null,null,null,null,null,"Rim Walk",1.5,"Sunset Point"]
[null,"Foster's",null,null,null,null,null,null,null,"Kids Programs",1,"North Campground Picnic area"]
[null,"Cabin Provides",null,"Price","Quantity",null,null,null,null,"Evening Programs",1,"varies"]
[null,"One Queen bed",null,70,null,null,null,null,null,"Full Moon Hikes","2.0-3.0","varies"]
[null,"Two Double beds",null,85,null,null,null,null,null,"Astronomy Programs",1,"varies"]
[null,null,null,"Total:",{"$f":"SUM(D52:D53*E52:E53)","v":0},null,null,null,null,"Snowshoe Hikes","1.5-2.5","varies"]
[]
[null,"Camping"]
[null,"Location",null,"Price","Quantity"]
[null,"North",null,15]
[null,"Sunset",null,15]
[null,null,null,"Total:",{"$f":"SUM(D58:D59*E58:E59)","v":0}]

{"sheet":"My Trip Summary","index":6,"n_rows":19,"n_cols":4,"rows_kept":19,"cut":false,"hidden":false,"merged":[]}
[]
[]
[]
["Item","Address","Telephone Number","Cost"]
["Camping","Springdale, UT 84767","1-435-772-3256",10.5]
["Zion National Park Cabin Suites","PO Box 925, Springdale, UT 84767","1-866-648-2555",164]
["Zion Park Cowboy Cabins","Twin Knolls Road, PO Box 5547, Zion National Park, UT 84755","1-435-648-2700",494]
["Backpacking at Zion","Zion National Park Springdale, UT 84767-1099","1-435-772-3256","Free"]
["Birding & Wildlife Watching","Zion National Park Springdale, UT 84767-1099","1-435-772-3256","Free"]
["Climbing","Zion National Park Springdale, UT 84767-1099","1-435-772-3256","Free"]
["Fishing","Zion National Park Springdale, UT 84767-1099","1-435-772-3256","Free"]
["Hiking","Zion National Park Springdale, UT 84767-1099","1-435-772-3256","Free"]
["Zion Lodge Dining Room","Zion National Park Springdale, UT","1-435-772-3213","Varies"]
["Red Rock Grill","Zion National Park Dr, Zion National Park, UT","1-435-772-3213","Varies"]
["Zion Mt Carmel Restaurant","12120 W Hwy 9, (Near the east entrance of Park), Zion National Park, UT 84758","1-435-648-2829","Varies"]
[]
[]
[null,null,"Travel Cost:",739.59524999999996]
[null,null,"Total Trip Cost:",1408.1]

{"sheet":"Help","index":7,"n_rows":0,"n_cols":0,"rows_kept":0,"cut":false,"hidden":false,"merged":[]}

{"sheet":"Rental Cars","index":8,"n_rows":13,"n_cols":5,"rows_kept":13,"cut":false,"hidden":false,"merged":[]}
["Sport           2 seats     22mpg      $45/day",1,22,45,3.75]
["SUV              5 seats     20 mpg     $49/day",2,20,49,3.51]
["Van              7 seats     20 mpg     $99/day",3,20,99,3.51]
["Sedan          5 seats     28 mpg     $39/day",4,28,39,3.51]
["Economy     5 seats     32 mpg     $29/day",5,32,29,3.51]
[]
[]
["Distance:"]
["Provo to Arches",186.7]
["Provo to Canyonlands",194.3]
["Provo to Zions",265.5]
["Provo to Capitol Reef",191.6]
["Provo to Bryce Canyon",229.6]